[Event "23rd OIBM 2019"]
[Site "Gmund am Tegernsee"]
[Date "2019.11.02"]
[Round "8.40"]
[White "Schmidt, Gerhard"]
[Black "Ludvik, Tomas"]
[Result "0-1"]
[ECO "D52"]
[WhiteElo "2118"]
[BlackElo "2305"]
[Annotator "RC"]
[PlyCount "86"]
[EventDate "2019.10.17"]
[EventType "swiss"]
[EventCountry "GER"]
[SourceTitle "playchess.com"]
[Source "ChessBase"]
[SourceQuality "1"]
[TimeControl "40/5400+30:1800+30"]

1. Nf3 {[%emt 0:00:00]} d5 {[%emt 0:00:00]} 2. d4 {[%emt 0:00:00]} Nf6 {[%emt 0:00:00]} 3. c4 {[%emt 0:00:07]} c6 {[%emt 0:00:00]} 4. Nc3 {[%emt 0:00:24]} e6 {[%emt 0:00:04]} 5. Bg5 {[%emt 0:00:54]} Nbd7 {[%emt 0:00:18]} 6. e3 {[%emt 0:00:25]} Qa5 {[%emt 0:00:26]} 7. Nd2 {[%emt 0:00:47]} Bb4 {[%emt 0:00:23]} 8. Qc2 {[%emt 0:01:52]} O-O {[%emt 0:00:32]} 9. Be2 {[%emt 0:01:16]} c5 {[%emt 0:00:52]} 10. dxc5 {[%emt 0:05:00]} dxc4 {[%emt 0:10:38]} 11. Nxc4 {[%emt 0:03:28]} Qxc5 {[%emt 0:01:08]} 12. Bxf6 {[%emt 0:01:45]} Nxf6 {[%emt 0:00:31]} 13. O-O {[%emt 0:05:57]} b5 {[%emt 0:09:39]} 14. Bf3 {[%emt 0:00:50]} Rb8 {[%emt 0:00:25]} 15. Nd2 {[%emt 0:00:37]} Bb7 {[%emt 0:05:55]} 16. Bxb7 {[%emt 0:05:05]} Rxb7 {[%emt 0:01:14]} 17. Nde4 {[%emt 0:00:27]} Qc4 {[%emt 0:14:20]} 18. Nxf6+ {[%emt 0:04:36]} gxf6 {[%emt 0:00:02]} 19. Rfd1 {[%emt 0:03:03]} Bxc3 {[%emt 0:05:11]} 20. bxc3 {[%emt 0:01:05]} Rc8 {[%emt 0:04:41]} 21. g3 {[%emt 0:16:05]} b4 {[%emt 0:08:03]} 22. Rd4 {[%emt 0:02:23]} Qxc3 {[%emt 0:02:16]} 23. Qd1 {[%emt 0:01:05]} Rb5 {[%emt 0:08:46]} 24. Qf1 {[%emt 0:03:23]} Rf5 {[%emt 0:03:35]} 25. Rad1 {[%emt 0:01:08]} a5 {[%emt 0:04:38]} 26. Qh3 {[%emt 0:07:54]} Qb2 {[%emt 0:04:42]} 27. R4d2 {[%emt 0:04:40]} Qc3 {[%emt 0:03:14]} 28. e4 {[%emt 0:08:33]} Rfc5 {[%emt 0:02:25]} 29. Qh6 {[%emt 0:06:16]} Re8 {[%emt 0:00:31]} 30. Rd8 {[%emt 0:01:49]} Rc8 {[%emt 0:00:09]} 31. R8d4 {[%emt 0:00:41]} Qf3 {[%emt 0:02:20]} 32. R4d3 {[%emt 0:08:28]} Qxe4 {[%emt 0:01:36]} 33. Qxf6 {[%emt 0:00:10]} Qg6 {[%emt 0:01:28]} 34. Qf3 {[%emt 0:00:46]} Rc4 {[%emt 0:03:14]} 35. Rd7 {[%emt 0:00:42]} Rf8 {[%emt 0:02:59]} 36. R7d4 {[%emt 0:01:57]} Rfc8 {[%emt 0:00:36]} 37. Rxc4 {[%emt 0:01:28]} Rxc4 {[%emt 0:00:01]} 38. Rd8+ {[%emt 0:00:22]} Kg7 {[%emt 0:00:09]} 39. Ra8 {[%emt 0:02:45]} Rc5 {[%emt 0:01:30]} 40. Qe3 {[%emt 0:00:35]} Rd5 {[%emt 0:00:39]} 41. Qf4 {[%emt 0:04:14]} Qh5 {[%emt 0:05:09]} 42. Kg2 {[%emt 0:03:06]} Qf5 {[%emt 0:03:41]} 43. Qh4 {[%emt 0:03:25]} Rd2 {[%emt 0:02:06]} 0-1

[Event "23rd OIBM 2019"]
[Site "Gmund am Tegernsee"]
[Date "2019.11.02"]
[Round "8.42"]
[White "Schuster, Karsten"]
[Black "Minko, Dmitry"]
[Result "1-0"]
[ECO "D31"]
[WhiteElo "2304"]
[BlackElo "2143"]
[Annotator "RC"]
[PlyCount "81"]
[EventDate "2019.10.17"]
[EventType "swiss"]
[EventCountry "GER"]
[SourceTitle "playchess.com"]
[Source "ChessBase"]
[SourceQuality "1"]
[TimeControl "40/5400+30:1800+30"]

1. d4 {[%emt 0:00:00]} d5 {[%emt 0:00:00]} 2. c4 {[%emt 0:00:00]} e6 {[%emt 0:00:00]} 3. Nc3 {[%emt 0:00:00]} Be7 {[%emt 0:00:00]} 4. cxd5 {[%emt 0:00:07]} exd5 {[%emt 0:00:06]} 5. Bf4 {[%emt 0:00:19]} c6 {[%emt 0:01:22]} 6. e3 {[%emt 0:00:14]} Bd6 {[%emt 0:01:28]} 7. Bxd6 {[%emt 0:03:20]} Qxd6 {[%emt 0:00:08]} 8. Bd3 {[%emt 0:00:06]} Ne7 {[%emt 0:00:52]} 9. Qc2 {[%emt 0:02:12]} g6 {[%emt 0:02:50]} 10. Nf3 {[%emt 0:02:50]} Bf5 {[%emt 0:06:22]} 11. O-O {[%emt 0:03:29]} Bxd3 {[%emt 0:04:00]} 12. Qxd3 {[%emt 0:00:04]} Nd7 {[%emt 0:04:52]} 13. b4 {[%emt 0:05:58]} a6 {[%emt 0:01:31]} 14. a4 {[%emt 0:02:23]} O-O {[%emt 0:00:46]} 15. a5 {[%emt 0:05:37]} Rae8 {[%emt 0:06:04]} 16. Na4 {[%emt 0:03:58]} Qxb4 {[%emt 0:10:05]} 17. Rfb1 {[%emt 0:01:31]} Qxa5 {[%emt 0:00:37]} 18. Nb6 {[%emt 0:00:42]} Qxb6 {[%emt 0:00:05]} 19. Rxb6 {[%emt 0:00:04]} Nxb6 {[%emt 0:00:06]} 20. Rb1 {[%emt 0:01:33]} Nec8 {[%emt 0:00:23]} 21. Qc3 {[%emt 0:02:29]} Nc4 {[%emt 0:23:48]} 22. Rxb7 {[%emt 0:01:52]} N8d6 {[%emt 0:01:38]} 23. Rb1 {[%emt 0:06:49]} Rb8 {[%emt 0:00:42]} 24. Rf1 {[%emt 0:05:01]} Ne4 {[%emt 0:04:50]} 25. Qa1 {[%emt 0:02:37]} Rb6 {[%emt 0:01:02]} 26. Rb1 {[%emt 0:10:04]} Rfb8 {[%emt 0:00:21]} 27. Rxb6 {[%emt 0:00:04]} Rxb6 {[%emt 0:00:04]} 28. g4 {[%emt 0:01:26]} a5 {[%emt 0:06:36]} 29. Ne5 {[%emt 0:06:28]} Ned2 {[%emt 0:05:17]} 30. Nxc4 {[%emt 0:02:25]} Nxc4 {[%emt 0:02:58]} 31. Qa4 {[%emt 0:01:13]} Rb5 {[%emt 0:03:23]} 32. e4 {[%emt 0:03:44]} Rb6 {[%emt 0:06:32]} 33. Kg2 {[%emt 0:07:13]} Ra6 {[%emt 0:00:12]} 34. h4 {[%emt 0:04:46]} Nd6 {[%emt 0:00:55]} 35. e5 {[%emt 0:02:05]} Nb5 {[%emt 0:02:21]} 36. f4 {[%emt 0:01:08]} Nc3 {[%emt 0:01:21]} 37. Qa3 {[%emt 0:02:48]} Nb5 {[%emt 0:00:05]} 38. Qe7 {[%emt 0:01:38]} Nxd4 {[%emt 0:00:50]} 39. Qb7 {[%emt 0:00:28]} c5 {[%emt 0:02:29]} 40. Qxa6 {[%emt 0:00:05]} c4 {[%emt 0:00:09]} 41. Qa8+ {[%emt 0:30:25]} 1-0

[Event "23rd OIBM 2019"]
[Site "Gmund am Tegernsee"]
[Date "2019.11.02"]
[Round "8.43"]
[White "Proschmann, Tino"]
[Black "Seifert, Volker"]
[Result "0-1"]
[ECO "C05"]
[WhiteElo "2106"]
[BlackElo "2300"]
[Annotator "RC"]
[PlyCount "88"]
[EventDate "2019.10.17"]
[EventType "swiss"]
[EventCountry "GER"]
[SourceTitle "playchess.com"]
[Source "ChessBase"]
[SourceQuality "1"]
[TimeControl "40/5400+30:1800+30"]

1. e4 {[%emt 0:00:00]} e6 {[%emt 0:00:00]} 2. d4 {[%emt 0:00:00]} d5 {[%emt 0:00:00]} 3. Nd2 {[%emt 0:00:00]} Nf6 {[%emt 0:00:11]} 4. e5 {[%emt 0:00:00]} Nfd7 {[%emt 0:00:05]} 5. Bd3 {[%emt 0:00:03]} c5 {[%emt 0:00:13]} 6. c3 {[%emt 0:00:06]} Nc6 {[%emt 0:00:17]} 7. Ne2 {[%emt 0:00:09]} Be7 {[%emt 0:00:33]} 8. O-O {[%emt 0:03:02]} cxd4 {[%emt 0:01:12]} 9. cxd4 {[%emt 0:00:20]} a5 {[%emt 0:00:42]} 10. f4 {[%emt 0:15:20]} Nb6 {[%emt 0:01:09]} 11. Nf3 {[%emt 0:08:30]} h5 {[%emt 0:08:00]} 12. Nc3 {[%emt 0:18:18]} Bd7 {[%emt 0:08:43]} 13. Be3 {[%emt 0:11:43]} a4 {[%emt 0:05:14]} 14. a3 {[%emt 0:04:22]} g6 {[%emt 0:14:09]} 15. Rc1 {[%emt 0:03:38]} Na5 {[%emt 0:01:44]} 16. Nd2 {[%emt 0:04:40]} Rc8 {[%emt 0:09:36]} 17. g4 {[%emt 0:12:17]} hxg4 {[%emt 0:04:09]} 18. Qxg4 {[%emt 0:00:22]} Nac4 {[%emt 0:00:25]} 19. Nxc4 {[%emt 0:08:12]} Nxc4 {[%emt 0:03:03]} 20. Qe2 {[%emt 0:00:59]} Rh3 {[%emt 0:11:13]} 21. Nd1 {[%emt 0:05:38]} Nxe3 {[%emt 0:02:43]} 22. Nxe3 {[%emt 0:00:10]} Rxc1 {[%emt 0:00:34]} 23. Rxc1 {[%emt 0:00:01]} Qb6 {[%emt 0:00:25]} 24. Kg2 {[%emt 0:02:09]} Rh4 {[%emt 0:01:25]} 25. Kh1 {[%emt 0:01:11]} Rxf4 {[%emt 0:10:23]} 26. Ng2 {[%emt 0:00:06]} Rxd4 {[%emt 0:01:36]} 27. Rf1 {[%emt 0:01:11]} Qb3 {[%emt 0:03:13]} 28. Bc2 {[%emt 0:00:33]} Bb5 {[%emt 0:07:29]} 29. Qf2 {[%emt 0:00:19]} Qxb2 {[%emt 0:03:55]} 30. Qxf7+ {[%emt 0:00:31]} Kd8 {[%emt 0:00:14]} 31. Bxg6 {[%emt 0:00:40]} Rg4 {[%emt 0:00:21]} 32. Rg1 {[%emt 0:00:45]} Qxe5 {[%emt 0:01:00]} 33. Re1 {[%emt 0:00:22]} Qf6 {[%emt 0:00:28]} 34. Qg8+ {[%emt 0:00:41]} Kc7 {[%emt 0:00:47]} 35. Qxe6 {[%emt 0:00:40]} Qxe6 {[%emt 0:00:51]} 36. Rxe6 {[%emt 0:00:03]} Bxa3 {[%emt 0:00:15]} 37. h4 {[%emt 0:00:29]} Bb2 {[%emt 0:00:33]} 38. Bf5 {[%emt 0:00:54]} Rg8 {[%emt 0:00:57]} 39. Bb1 {[%emt 0:00:33]} Bc6 {[%emt 0:00:43]} 40. Kh2 {[%emt 0:00:19]} a3 {[%emt 0:00:42]} 41. Ne3 {[%emt 0:01:28]} d4 {[%emt 0:01:18]} 42. Nf5 {[%emt 0:10:29]} d3 {[%emt 0:08:06]} 43. Re7+ {[%emt 0:03:36]} Kb8 {[%emt 0:02:16]} 44. Ne3 {[%emt 0:03:25]} d2 {[%emt 0:00:49]} 0-1

[Event "23rd OIBM 2019"]
[Site "Gmund am Tegernsee"]
[Date "2019.11.03"]
[Round "9.21"]
[White "Kueppers, Timo"]
[Black "Zysk, Robert"]
[Result "1/2-1/2"]
[ECO "C08"]
[WhiteElo "2250"]
[BlackElo "2412"]
[Annotator "RC"]
[PlyCount "123"]
[EventDate "2019.10.17"]
[EventType "swiss"]
[EventCountry "GER"]
[SourceTitle "playchess.com"]
[Source "ChessBase"]
[SourceQuality "1"]
[TimeControl "40/5400+30:1800+30"]

1. e4 {[%emt 0:00:00]} e6 {[%emt 0:00:02]} 2. d4 {[%emt 0:00:00]} d5 {[%emt 0:00:05]} 3. Nd2 {[%emt 0:00:00]} c5 {[%emt 0:01:58]} 4. exd5 {[%emt 0:00:12]} exd5 {[%emt 0:00:05]} 5. Ngf3 {[%emt 0:00:05]} Nf6 {[%emt 0:00:11]} 6. Bb5+ {[%emt 0:00:04]} Bd7 {[%emt 0:00:05]} 7. Bxd7+ {[%emt 0:00:06]} Nbxd7 {[%emt 0:00:05]} 8. O-O {[%emt 0:00:08]} Be7 {[%emt 0:00:06]} 9. dxc5 {[%emt 0:00:05]} Nxc5 {[%emt 0:00:16]} 10. Nb3 {[%emt 0:00:03]} Nce4 {[%emt 0:01:11]} 11. Nfd4 {[%emt 0:00:25]} Qd7 {[%emt 0:02:29]} 12. f3 {[%emt 0:02:10]} Nd6 {[%emt 0:04:27]} 13. Nc5 {[%emt 0:00:37]} Qc8 {[%emt 0:06:21]} 14. Nd3 {[%emt 0:00:55]} O-O {[%emt 0:00:44]} 15. Re1 {[%emt 0:01:08]} Bd8 {[%emt 0:06:21]} 16. Bg5 {[%emt 0:05:57]} Nf5 {[%emt 0:09:30]} 17. Nxf5 {[%emt 0:04:22]} Qxf5 {[%emt 0:00:06]} 18. Re5 {[%emt 0:00:20]} Qd7 {[%emt 0:00:11]} 19. Kh1 {[%emt 0:15:30]} h6 {[%emt 0:05:58]} 20. Bh4 {[%emt 0:17:38]} Rc8 {[%emt 0:01:41]} 21. c3 {[%emt 0:03:53]} Ng4 {[%emt 0:12:07]} 22. fxg4 {[%emt 0:05:49]} Bxh4 {[%emt 0:00:34]} 23. Qf3 {[%emt 0:01:03]} Rfd8 {[%emt 0:04:19]} 24. Rf1 {[%emt 0:13:16]} Bf6 {[%emt 0:13:19]} 25. Rf5 {[%emt 0:00:07]} d4 {[%emt 0:01:08]} 26. Nc5 {[%emt 0:02:22]} Qc6 {[%emt 0:03:54]} 27. Ne4 {[%emt 0:01:22]} Re8 {[%emt 0:05:26]} 28. Nxf6+ {[%emt 0:03:08]} gxf6 {[%emt 0:00:06]} 29. Qh3 {[%emt 0:03:37]} dxc3 {[%emt 0:15:34]} 30. bxc3 {[%emt 0:06:46]} Kg7 {[%emt 0:01:04]} 31. Qh4 {[%emt 0:09:20]} Re6 {[%emt 0:01:19]} 32. Qf2 {[%emt 0:00:20]} Rce8 {[%emt 0:02:09]} 33. h4 {[%emt 0:03:21]} Re2 {[%emt 0:00:47]} 34. Qg3 {[%emt 0:00:18]} R8e3 35. R1f3 {[%emt 0:00:45]} Qxc3 {[%emt 0:01:15]} 36. g5 {[%emt 0:00:31]} Qe1+ {[%emt 0:00:28]} 37. Qxe1 {[%emt 0:01:03]} Rxe1+ {[%emt 0:00:04]} 38. Kh2 {[%emt 0:00:05]} hxg5 {[%emt 0:00:11]} 39. hxg5 {[%emt 0:00:46]} Rxf3 {[%emt 0:00:15]} 40. gxf6+ {[%emt 0:00:03]} Kg6 {[%emt 0:00:09]} 41. Rxf3 {[%emt 0:30:02]} Re6 {[%emt 0:30:12]} 42. Rb3 {[%emt 0:00:00]} b6 {[%emt 0:00:00]} 43. Ra3 {[%emt 0:00:00]} a5 {[%emt 0:00:00]} 44. Rb3 {[%emt 0:00:00]} Kxf6 {[%emt 0:00:00]} 45. Rb5 {[%emt 0:00:00]} Ke7 {[%emt 0:00:00]} 46. Kh3 {[%emt 0:00:00]} f6 {[%emt 0:00:00]} 47. g4 {[%emt 0:00:00]} Kf7 {[%emt 0:00:00]} 48. Kg3 {[%emt 0:00:00]} Kg6 {[%emt 0:00:00]} 49. Kf3 {[%emt 0:00:00]} Rc6 {[%emt 0:00:00]} 50. Kg3 {[%emt 0:00:00]} Rc2 {[%emt 0:00:00]} 51. Rxb6 {[%emt 0:00:00]} Rxa2 {[%emt 0:00:13]} 52. Rb5 {[%emt 0:00:00]} Ra1 {[%emt 0:01:31]} 53. Kg2 {[%emt 0:00:00]} a4 {[%emt 0:02:56]} 54. Ra5 {[%emt 0:00:00]} a3 {[%emt 0:00:09]} 55. Kh2 {[%emt 0:00:00]} Kf7 {[%emt 0:00:15]} 56. Ra6 {[%emt 0:00:00]} Ke7 {[%emt 0:01:29]} 57. Kg2 {[%emt 0:00:00]} a2 {[%emt 0:01:32]} 58. Kh2 {[%emt 0:00:00]} Kd7 {[%emt 0:00:09]} 59. Kg2 {[%emt 0:00:00]} Kc7 {[%emt 0:00:09]} 60. g5 {[%emt 0:00:40]} fxg5 {[%emt 0:00:06]} 61. Ra7+ {[%emt 0:00:49]} Kb6 {[%emt 0:00:07]} 62. Ra8 {[%emt 0:00:16]} 1/2-1/2

[Event "23rd OIBM 2019"]
[Site "Gmund am Tegernsee"]
[Date "2019.11.03"]
[Round "9.23"]
[White "Ciolek, Andreas"]
[Black "Piscopo, Pierluigi"]
[Result "1/2-1/2"]
[ECO "B30"]
[WhiteElo "2238"]
[BlackElo "2398"]
[Annotator "RC"]
[PlyCount "73"]
[EventDate "2019.10.17"]
[EventType "swiss"]
[EventCountry "GER"]
[SourceTitle "playchess.com"]
[Source "ChessBase"]
[SourceQuality "1"]
[TimeControl "40/5400+30:1800+30"]

1. e4 {[%emt 0:05:39]} c5 {[%emt 0:00:00]} 2. Nf3 {[%emt 0:00:26]} Nc6 {[%emt 0:00:00]} 3. g3 {[%emt 0:00:06]} Nf6 {[%emt 0:06:42]} 4. d3 {[%emt 0:00:29]} g6 {[%emt 0:07:37]} 5. Bg2 {[%emt 0:00:33]} Bg7 {[%emt 0:00:15]} 6. O-O {[%emt 0:00:07]} d5 {[%emt 0:00:13]} 7. Nbd2 {[%emt 0:01:56]} O-O {[%emt 0:00:11]} 8. Re1 {[%emt 0:02:35]} Bg4 {[%emt 0:12:22]} 9. h3 {[%emt 0:04:53]} Bxf3 {[%emt 0:00:15]} 10. Qxf3 {[%emt 0:00:05]} e6 {[%emt 0:01:33]} 11. Nb3 {[%emt 0:08:04]} Rc8 {[%emt 0:13:24]} 12. c4 {[%emt 0:17:22]} dxe4 {[%emt 0:16:59]} 13. dxe4 {[%emt 0:00:55]} Qb6 {[%emt 0:00:08]} 14. Bg5 {[%emt 0:18:20]} Nd7 {[%emt 0:03:13]} 15. Rad1 {[%emt 0:01:01]} h6 {[%emt 0:03:12]} 16. Bc1 {[%emt 0:01:44]} Rfd8 {[%emt 0:00:52]} 17. Qe2 {[%emt 0:03:03]} a5 {[%emt 0:01:28]} 18. f4 {[%emt 0:01:02]} a4 {[%emt 0:07:21]} 19. Na1 {[%emt 0:00:42]} Nd4 {[%emt 0:00:06]} 20. Qf1 {[%emt 0:04:45]} Qa6 {[%emt 0:00:41]} 21. e5 {[%emt 0:02:23]} Nb6 {[%emt 0:00:16]} 22. b3 {[%emt 0:07:32]} axb3 {[%emt 0:01:35]} 23. Nxb3 {[%emt 0:00:06]} Qxa2 {[%emt 0:00:55]} 24. Nxd4 {[%emt 0:07:13]} cxd4 {[%emt 0:01:17]} 25. Bxb7 {[%emt 0:01:06]} Rxc4 {[%emt 0:00:15]} 26. Be3 {[%emt 0:00:35]} Qa7 {[%emt 0:08:38]} 27. Be4 {[%emt 0:01:35]} Ra4 {[%emt 0:00:29]} 28. g4 {[%emt 0:00:32]} Nd5 {[%emt 0:00:38]} 29. Bc1 {[%emt 0:01:03]} Nc3 {[%emt 0:02:51]} 30. Rd3 {[%emt 0:00:18]} Nxe4 {[%emt 0:00:53]} 31. Rxe4 {[%emt 0:00:07]} Ra1 {[%emt 0:00:02]} 32. Re1 {[%emt 0:01:12]} Qc5 {[%emt 0:06:09]} 33. Red1 {[%emt 0:01:08]} Qc2 {[%emt 0:04:06]} 34. Be3 {[%emt 0:01:16]} Rxd1 {[%emt 0:00:26]} 35. Qxd1 {[%emt 0:00:24]} Qxd1+ {[%emt 0:00:06]} 36. Rxd1 {[%emt 0:00:03]} Bf8 {[%emt 0:00:43]} 37. Rxd4 {[%emt 0:00:25]} 1/2-1/2

[Event "23rd OIBM 2019"]
[Site "Gmund am Tegernsee"]
[Date "2019.11.03"]
[Round "9.24"]
[White "Padmini, Rout"]
[Black "Koellner, Ruben Gideon"]
[Result "1-0"]
[ECO "A05"]
[WhiteElo "2394"]
[BlackElo "2265"]
[Annotator "RC"]
[PlyCount "97"]
[EventDate "2019.10.17"]
[EventType "swiss"]
[EventCountry "GER"]
[SourceTitle "playchess.com"]
[Source "ChessBase"]
[SourceQuality "1"]
[TimeControl "40/5400+30:1800+30"]

1. Nf3 {[%emt 0:00:00]} Nf6 {[%emt 0:00:00]} 2. g3 {[%emt 0:00:00]} d5 {[%emt 0:00:12]} 3. Bg2 {[%emt 0:00:08]} e6 {[%emt 0:00:04]} 4. O-O {[%emt 0:00:10]} Nbd7 {[%emt 0:00:54]} 5. d4 {[%emt 0:01:20]} b5 {[%emt 0:00:11]} 6. Nbd2 {[%emt 0:07:14]} Bb7 {[%emt 0:01:10]} 7. Nb3 {[%emt 0:08:19]} c5 {[%emt 0:01:19]} 8. c3 {[%emt 0:07:16]} Be7 {[%emt 0:15:58]} 9. Bg5 {[%emt 0:00:24]} Rc8 {[%emt 0:03:12]} 10. dxc5 {[%emt 0:06:03]} Nxc5 {[%emt 0:01:26]} 11. Nxc5 {[%emt 0:00:21]} Bxc5 {[%emt 0:00:32]} 12. Qb3 {[%emt 0:01:23]} a6 {[%emt 0:02:40]} 13. a4 {[%emt 0:00:47]} Qb6 {[%emt 0:00:26]} 14. Bxf6 {[%emt 0:06:01]} gxf6 {[%emt 0:00:06]} 15. axb5 {[%emt 0:00:09]} Qxb5 {[%emt 0:02:38]} 16. Qxb5+ {[%emt 0:01:28]} axb5 {[%emt 0:00:02]} 17. Ra5 {[%emt 0:00:58]} Bc6 {[%emt 0:03:08]} 18. Nd4 {[%emt 0:01:49]} Bxd4 {[%emt 0:08:19]} 19. cxd4 {[%emt 0:00:03]} Kd7 {[%emt 0:01:57]} 20. Rfa1 {[%emt 0:01:14]} Ra8 {[%emt 0:09:42]} 21. Ra7+ {[%emt 0:02:28]} Kd6 {[%emt 0:00:05]} 22. Bf1 {[%emt 0:10:55]} Rhb8 {[%emt 0:03:48]} 23. b4 {[%emt 0:08:38]} Rxa7 {[%emt 0:05:52]} 24. Rxa7 {[%emt 0:00:03]} Bd7 {[%emt 0:00:47]} 25. e3 {[%emt 0:01:00]} Kc6 {[%emt 0:00:19]} 26. Kg2 {[%emt 0:03:16]} Rd8 {[%emt 0:00:22]} 27. Bd3 {[%emt 0:03:37]} Kb6 {[%emt 0:00:18]} 28. Ra2 {[%emt 0:00:46]} f5 {[%emt 0:00:25]} 29. Kh3 {[%emt 0:02:04]} Rc8 {[%emt 0:09:07]} 30. Kh4 {[%emt 0:01:55]} Rc3 {[%emt 0:00:09]} 31. Rd2 {[%emt 0:09:13]} Rb3 {[%emt 0:15:47]} 32. Kg5 {[%emt 0:00:26]} Rxb4 {[%emt 0:00:43]} 33. Kh6 {[%emt 0:01:38]} Ra4 {[%emt 0:05:19]} 34. Kxh7 {[%emt 0:00:26]} f6 {[%emt 0:01:03]} 35. Kg7 {[%emt 0:01:00]} e5 {[%emt 0:01:37]} 36. Kxf6 {[%emt 0:04:36]} exd4 {[%emt 0:01:37]} 37. exd4 {[%emt 0:00:49]} Rxd4 {[%emt 0:00:54]} 38. Ke5 {[%emt 0:00:13]} Kc5 {[%emt 0:01:23]} 39. h4 {[%emt 0:03:37]} Be8 {[%emt 0:00:51]} 40. Rc2+ {[%emt 0:00:52]} Rc4 {[%emt 0:00:04]} 41. Bxf5 {[%emt 0:30:52]} b4 {[%emt 0:33:11]} 42. g4 {[%emt 0:00:15]} b3 {[%emt 0:00:24]} 43. Rd2 {[%emt 0:00:59]} Rc1 {[%emt 0:01:27]} 44. Rxd5+ {[%emt 0:00:44]} Kb4 {[%emt 0:00:00]} 45. h5 {[%emt 0:00:00]} b2 {[%emt 0:00:00]} 46. h6 {[%emt 0:00:00]} Bc6 {[%emt 0:00:00]} 47. h7 {[%emt 0:00:00]} Re1+ {[%emt 0:00:00]} 48. Kd6 {[%emt 0:00:00]} Bxd5 {[%emt 0:00:00]} 49. h8=Q {[%emt 0:00:00]} 1-0

[Event "23rd OIBM 2019"]
[Site "Gmund am Tegernsee"]
[Date "2019.11.03"]
[Round "9.32"]
[White "Badelka, Olga"]
[Black "Richter, Nils"]
[Result "1-0"]
[ECO "E90"]
[WhiteElo "2413"]
[BlackElo "2213"]
[Annotator "RC"]
[PlyCount "103"]
[EventDate "2019.10.17"]
[EventType "swiss"]
[EventCountry "GER"]
[SourceTitle "playchess.com"]
[Source "ChessBase"]
[SourceQuality "1"]
[TimeControl "40/5400+30:1800+30"]

1. d4 {[%emt 0:00:00]} Nf6 {[%emt 0:00:00]} 2. c4 {[%emt 0:00:00]} g6 {[%emt 0:00:00]} 3. Nc3 {[%emt 0:00:00]} Bg7 {[%emt 0:00:00]} 4. e4 {[%emt 0:00:00]} d6 {[%emt 0:00:03]} 5. Nf3 {[%emt 0:00:00]} O-O {[%emt 0:00:14]} 6. h3 {[%emt 0:00:00]} e5 {[%emt 0:00:25]} 7. d5 {[%emt 0:00:00]} Nh5 {[%emt 0:00:27]} 8. g3 {[%emt 0:00:12]} Na6 {[%emt 0:00:48]} 9. Bg2 {[%emt 0:04:41]} f5 {[%emt 0:01:01]} 10. exf5 {[%emt 0:00:20]} gxf5 {[%emt 0:00:13]} 11. Ng5 {[%emt 0:01:00]} Nf6 {[%emt 0:00:50]} 12. O-O {[%emt 0:02:24]} h6 {[%emt 0:05:18]} 13. Nf3 {[%emt 0:00:05]} c5 {[%emt 0:13:11]} 14. dxc6 {[%emt 0:09:22]} bxc6 {[%emt 0:00:10]} 15. Nh4 {[%emt 0:00:14]} Qc7 {[%emt 0:01:42]} 16. Qa4 {[%emt 0:09:26]} e4 {[%emt 0:03:54]} 17. Be3 {[%emt 0:00:29]} Nd7 {[%emt 0:02:55]} 18. Ng6 {[%emt 0:10:42]} Re8 {[%emt 0:01:52]} 19. Rad1 {[%emt 0:07:47]} Kh7 {[%emt 0:08:28]} 20. Nf4 {[%emt 0:00:31]} Nb6 {[%emt 0:04:26]} 21. Qc2 {[%emt 0:24:31]} Nxc4 {[%emt 0:02:50]} 22. Nxe4 {[%emt 0:00:04]} d5 {[%emt 0:07:36]} 23. Nc5 {[%emt 0:07:07]} Nxe3 {[%emt 0:02:07]} 24. fxe3 {[%emt 0:00:04]} Qe5 {[%emt 0:06:23]} 25. Nxa6 {[%emt 0:02:31]} Bxa6 {[%emt 0:00:15]} 26. Rfe1 {[%emt 0:00:51]} Rac8 {[%emt 0:05:07]} 27. b3 {[%emt 0:00:05]} Kg8 {[%emt 0:01:26]} 28. h4 {[%emt 0:01:53]} Bb7 {[%emt 0:04:27]} 29. Bh3 {[%emt 0:01:13]} Rf8 {[%emt 0:01:05]} 30. Kh2 {[%emt 0:01:02]} Rf7 {[%emt 0:01:16]} 31. Qc5 {[%emt 0:04:45]} Re8 {[%emt 0:07:31]} 32. Rc1 {[%emt 0:02:43]} a5 {[%emt 0:02:44]} 33. Bg2 {[%emt 0:04:17]} Ra8 {[%emt 0:01:08]} 34. Nd3 {[%emt 0:00:57]} Qf6 {[%emt 0:01:20]} 35. a4 {[%emt 0:00:45]} Ba6 {[%emt 0:01:22]} 36. Qxa5 {[%emt 0:02:23]} Raa7 {[%emt 0:01:32]} 37. Qd2 {[%emt 0:00:25]} Bxd3 {[%emt 0:02:18]} 38. Qxd3 {[%emt 0:00:03]} Qd6 {[%emt 0:00:05]} 39. e4 {[%emt 0:02:58]} fxe4 {[%emt 0:03:02]} 40. Rxe4 {[%emt 0:00:31]} Be5 {[%emt 0:08:23]} 41. Rxe5 {[%emt 0:05:58]} Qxe5 {[%emt 0:00:21]} 42. Rxc6 {[%emt 0:00:04]} Rad7 {[%emt 0:04:21]} 43. a5 {[%emt 0:07:43]} d4 {[%emt 0:03:11]} 44. a6 {[%emt 0:01:52]} Qf5 {[%emt 0:01:23]} 45. Qxf5 {[%emt 0:03:05]} Rxf5 {[%emt 0:00:01]} 46. Bh3 {[%emt 0:00:07]} Rf2+ {[%emt 0:04:18]} 47. Kg1 {[%emt 0:00:04]} Rdf7 {[%emt 0:00:32]} 48. Be6 {[%emt 0:00:03]} Rf1+ {[%emt 0:00:55]} 49. Kg2 {[%emt 0:00:03]} R1f2+ {[%emt 0:00:09]} 50. Kh3 {[%emt 0:00:03]} d3 {[%emt 0:00:41]} 51. a7 {[%emt 0:01:03]} Ra2 {[%emt 0:00:10]} 52. Rc7 {[%emt 0:00:12]} 1-0

[Event "23rd OIBM 2019"]
[Site "Gmund am Tegernsee"]
[Date "2019.11.03"]
[Round "9.33"]
[White "Wiechert, Hans"]
[Black "Gschnitzer, Adrian"]
[Result "1/2-1/2"]
[ECO "A05"]
[WhiteElo "2187"]
[BlackElo "2412"]
[Annotator "RC"]
[PlyCount "52"]
[EventDate "2019.10.17"]
[EventType "swiss"]
[EventCountry "GER"]
[SourceTitle "playchess.com"]
[Source "ChessBase"]
[SourceQuality "1"]
[TimeControl "40/5400+30:1800+30"]

1. Nf3 {[%emt 0:00:00]} Nf6 {[%emt 0:00:00]} 2. c4 {[%emt 0:00:00]} c5 {[%emt 0:00:00]} 3. g3 {[%emt 0:00:13]} d5 {[%emt 0:00:00]} 4. cxd5 {[%emt 0:00:11]} Nxd5 {[%emt 0:00:03]} 5. Bg2 {[%emt 0:00:28]} Nc6 {[%emt 0:00:08]} 6. d4 {[%emt 0:00:14]} cxd4 {[%emt 0:01:18]} 7. Nxd4 {[%emt 0:00:11]} Ndb4 {[%emt 0:00:42]} 8. Nxc6 {[%emt 0:00:15]} Qxd1+ {[%emt 0:00:07]} 9. Kxd1 {[%emt 0:00:10]} Nxc6 {[%emt 0:00:07]} 10. Bxc6+ {[%emt 0:00:08]} bxc6 {[%emt 0:00:11]} 11. Nc3 {[%emt 0:00:07]} e5 {[%emt 0:08:28]} 12. Be3 {[%emt 0:04:41]} Be7 {[%emt 0:04:57]} 13. Kd2 {[%emt 0:02:11]} Rb8 {[%emt 0:04:53]} 14. b3 {[%emt 0:07:06]} Bf5 {[%emt 0:01:55]} 15. Na4 {[%emt 0:05:25]} O-O {[%emt 0:06:32]} 16. Nc5 {[%emt 0:10:07]} Rb5 {[%emt 0:06:37]} 17. Rhc1 {[%emt 0:07:02]} Bh3 {[%emt 0:17:35]} 18. Rc4 {[%emt 0:06:45]} f5 {[%emt 0:02:32]} 19. Rac1 {[%emt 0:01:45]} f4 {[%emt 0:01:56]} 20. gxf4 {[%emt 0:00:18]} exf4 {[%emt 0:00:27]} 21. Bd4 {[%emt 0:00:48]} Rd8 {[%emt 0:01:53]} 22. e3 {[%emt 0:02:16]} fxe3+ {[%emt 0:12:34]} 23. fxe3 {[%emt 0:00:30]} Rf8 {[%emt 0:00:06]} 24. Nd3 {[%emt 0:00:30]} Rg5 {[%emt 0:05:31]} 25. Nf4 {[%emt 0:03:16]} Bd7 {[%emt 0:00:19]} 26. Bc5 {[%emt 0:05:01]} Kf7 {[%emt 0:06:36]} 1/2-1/2